fUST/lending_fUST_20250915
["ID","MTS","AMOUNT","RATE_DAILY","PERIOD"]
[385508993,1757883038191,-6794.63539194,0.00021741,2]
[385508994,1757883038200,-161.11839859,0.00021741,2]
[385508995,1757883038210,-315.30943684,0.00021741,2]
[385508996,1757883038219,-417.15472785,0.00021807,10]
[385508997,1757883038229,-3572.2,0.00021807,10]
[385508998,1757883038239,-6197.25,0.00021807,10]
[385509000,1757883038248,-5164.37,0.00021807,10]
[385509001,1757883038257,-500.0,0.00021816,2]
[385509002,1757883038267,-500.0,0.00021816,2]
[385509003,1757883038276,-500.0,0.00021816,2]
[385509004,1757883038285,-647.32117892,0.00021816,2]
[385509005,1757883038295,-370000.0,0.00021817,2]
[385509006,1757883038304,-315.3094368,0.00021829,2]
[385509007,1757883038314,-5000.0,0.00021841,2]
[385509008,1757883038323,-160.0,0.00021868,2]
[385509009,1757883038333,-160.0,0.00021868,2]
[385509010,1757883038342,-847.27885267,0.00021868,2]
[385509011,1757883038351,-160.0,0.00021869,2]
[385509012,1757883038361,-500.0,0.00021873,2]
[385509013,1757883038370,-500.85520832,0.00021873,2]
[385509014,1757883038382,-500.0,0.00021873,2]
[385509015,1757883038394,-500.0,0.00021873,2]
[385509016,1757883038403,-500.0,0.00021873,2]
[385509017,1757883038413,-500.0,0.00021873,2]
[385509018,1757883038423,-500.0,0.00021873,2]
[385509019,1757883038432,-340.91074575,0.00021873,2]
[385509020,1757883038441,-188.84353114,0.00021873,2]
[385509021,1757883038451,-323.03609201,0.00021873,2]
[385509022,1757883038463,-501.43906007,0.00021873,2]
[385509023,1757883038473,-500.0,0.00021873,2]
[385509024,1757883038482,-500.0,0.00021873,2]
[385509025,1757883038491,-500.0,0.00021873,2]
[385509026,1757883038500,-500.0,0.00021873,2]
[385509027,1757883038510,-500.0,0.00021873,2]
[385509028,1757883038519,-513.23307313,0.00021873,2]
[385509029,1757883038529,-500.0,0.00021873,2]
[385509030,1757883038539,-564.0139079,0.00021873,2]
[385509031,1757883038548,-500.0,0.00021873,2]
[385509032,1757883038557,-500.0,0.00021873,2]
[385509033,1757883038567,-500.0,0.00021873,2]
[385509034,1757883038576,-500.0,0.00021873,2]
[385509035,1757883038585,-502.6238293,0.00021873,2]
[385509036,1757883038595,-500.0,0.00021873,2]
[385509037,1757883038604,-500.0,0.00021873,2]
[385509039,1757883038786,-260.22484996,0.00021873,2]
[385509041,1757883038796,-500.0,0.00021873,2]
[385509043,1757883038806,-500.0,0.00021873,2]
[385509044,1757883038816,-500.0,0.00021873,2]
[385509045,1757883038826,-500.0,0.00021873,2]
[385509046,1757883038835,-519.41544812,0.00021873,2]
[385509047,1757883038845,-500.0,0.00021873,2]
[385509048,1757883038854,-501.74410794,0.00021873,2]
[385509049,1757883038863,-228.29320842,0.00021873,2]
[385509050,1757883038873,-500.0,0.00021873,2]
[385509051,1757883038885,-217.77739939,0.00021915,2]
[385509052,1757883038894,-233.1999649,0.00021915,2]
[385509053,1757883038904,-315.3094368,0.00021916,2]
[385509054,1757883038913,-480.0,0.00021917,2]
[385509055,1757883038923,-496.16,0.00021917,2]
[385509056,1757883038932,-480.0,0.00021917,3]
[385509057,1757883038941,-480.0,0.00021917,2]
[385509058,1757883038950,-480.0,0.00021917,2]
[385509059,1757883038960,-480.0,0.00021917,2]
[385509060,1757883038969,-480.0,0.00021917,2]
[385509061,1757883038978,-480.0,0.00021917,2]
[385509063,1757883038987,-480.0,0.00021917,2]
[385509065,1757883038996,-518.26,0.00021917,2]
[385509067,1757883039006,-486.37,0.00021917,2]
[385509069,1757883039015,-480.0,0.00021917,2]
[385509071,1757883039024,-480.0,0.00021917,2]
[385509073,1757883039033,-480.0,0.00021917,2]
[385509075,1757883039042,-480.0,0.00021917,2]
[385509077,1757883039051,-480.0,0.00021917,2]
[385509079,1757883039060,-284.82748106,0.00021917,2]
[385509081,1757883039069,-281.76545184,0.00021917,2]
[385509083,1757883039078,-480.0,0.00021917,2]
[385509085,1757883039087,-662.69,0.00021917,2]
[385509087,1757883039096,-480.0,0.00021917,2]
[385509089,1757883039105,-480.0,0.00021917,2]
[385509091,1757883039114,-480.0,0.00021917,2]
[385509093,1757883039123,-480.0,0.00021917,2]
[385509095,1757883039133,-480.0,0.00021917,2]
[385509097,1757883039143,-480.0,0.00021917,2]
[385509099,1757883039152,-480.0,0.00021917,2]
[385509101,1757883039161,-480.0,0.00021917,2]
[385509103,1757883039170,-480.0,0.00021917,2]
[385509105,1757883039179,-752.86,0.00021917,2]
[385509107,1757883039188,-480.0,0.00021917,2]
[385509109,1757883039197,-480.0,0.00021917,2]
[385509111,1757883039206,-480.0,0.00021917,2]
[385509113,1757883039215,-480.0,0.00021917,2]
[385509115,1757883039224,-480.0,0.00021917,2]
[385509117,1757883039233,-480.0,0.00021917,2]
[385509119,1757883039242,-480.0,0.00021917,2]
[385509121,1757883039252,-480.0,0.00021917,2]
[385509123,1757883039261,-480.0,0.00021917,2]
[385509125,1757883039271,-480.0,0.00021917,2]
[385509127,1757883039280,-300.0,0.00021917,2]
[385509129,1757883039289,-480.0,0.00021917,2]
[385509132,1757883039298,-629.43,0.00021917,2]
[385509134,1757883039307,-10889.17,0.00021917,2]
[385509136,1757883039316,-575.93,0.00021917,2]
[385509138,1757883039325,-596.11,0.00021917,2]
[385509139,1757883039335,-719.75,0.00021917,2]
[385509142,1757883039344,-3294.39,0.00021917,2]
[385509144,1757883039353,-480.0,0.00021917,2]
[385509146,1757883039362,-918.8,0.00021917,2]
[385509148,1757883039371,-1704.0,0.00021917,2]
[385509149,1757883039380,-480.0,0.00021917,2]
[385509151,1757883039392,-480.0,0.00021917,2]
[385509154,1757883039402,-526.97,0.00021917,2]
[385509156,1757883039411,-1182.57,0.00021917,2]
[385509158,1757883039420,-480.0,0.00021917,2]
[385509160,1757883039432,-480.0,0.00021917,2]
[385509162,1757883039441,-480.0,0.00021917,2]
[385509164,1757883039451,-3289.51,0.00021917,2]
[385509166,1757883039460,-480.0,0.00021917,2]
[385509167,1757883039470,-817.38,0.00021917,2]
[385509169,1757883039479,-480.0,0.00021917,2]
[385509171,1757883039488,-480.0,0.00021917,2]
[385509173,1757883039498,-480.0,0.00021917,2]
[385509175,1757883039507,-1295.53,0.00021917,2]
[385509177,1757883039517,-551.92,0.00021917,2]
[385509180,1757883039526,-480.0,0.00021917,2]
[385509182,1757883039535,-1359.48,0.00021917,2]
[385509184,1757883039545,-1311.6,0.00021917,2]
[385509186,1757883039554,-556.37,0.00021917,2]
[385509188,1757883039563,-1855.66,0.00021917,2]
[385509190,1757883039573,-577.09,0.00021917,2]
[385509192,1757883039582,-480.0,0.00021917,2]
[385509194,1757883039591,-480.0,0.00021917,2]
[385509196,1757883039600,-525.71,0.00021917,2]
[385509198,1757883039609,-480.0,0.00021917,2]
[385509200,1757883039618,-480.0,0.00021917,2]
[385509202,1757883039628,-6408.23,0.00021917,2]
[385509204,1757883039637,-480.0,0.00021917,2]
[385509206,1757883039646,-480.0,0.00021917,2]
[385509208,1757883039655,-480.0,0.00021917,2]
[385509210,1757883039664,-480.0,0.00021917,2]
[385509212,1757883039672,-1154.95,0.00021917,2]
[385509214,1757883039681,-1228.23,0.00021917,2]
[385509216,1757883039690,-529.75,0.00021917,2]
[385509218,1757883039699,-581.6,0.00021917,2]
[385509220,1757883039708,-480.0,0.00021917,2]
[385509222,1757883039717,-1483.53,0.00021917,2]
[385509224,1757883039726,-743.91,0.00021917,2]
[385509226,1757883039735,-480.0,0.00021917,2]
[385509228,1757883039744,-847.73,0.00021917,2]
[385509230,1757883039753,-600.84,0.00021917,2]
[385509232,1757883039762,-2132.04,0.00021917,2]
[385509234,1757883039771,-566.08,0.00021917,2]
[385509236,1757883039780,-1452.44,0.00021917,2]
[385509238,1757883039789,-3034.58,0.00021917,2]
[385509239,1757883039799,-480.0,0.00021917,2]
[385509241,1757883039808,-480.0,0.00021917,2]
[385509243,1757883039816,-480.0,0.00021917,2]
[385509246,1757883039826,-480.0,0.00021917,2]
[385509248,1757883039836,-480.0,0.00021917,2]
[385509250,1757883039846,-374.6559393,0.00021917,2]
[385509252,1757883039856,-630.39,0.00021917,2]
[385509253,1757883039866,-495.28,0.00021917,2]
[385509255,1757883039875,-480.0,0.00021917,2]
[385509257,1757883039893,-480.0,0.00021917,2]
[385509259,1757883039923,-618.93,0.00021917,2]
[385509261,1757883039940,-480.0,0.00021917,2]
[385509262,1757883039961,-704.02,0.00021917,2]
[385509264,1757883039973,-480.0,0.00021917,2]
[385509266,1757883039982,-1589.38,0.00021917,2]
[385509268,1757883039992,-1264.29,0.00021917,2]
[385509270,1757883040002,-480.0,0.00021917,2]
[385509272,1757883040011,-480.0,0.00021917,2]
[385509274,1757883040021,-480.0,0.00021917,2]
[385509276,1757883040030,-653.99,0.00021917,2]
[385509278,1757883040039,-991.26,0.00021917,2]
[385509280,1757883040048,-480.0,0.00021917,2]
[385509282,1757883040058,-480.0,0.00021917,2]
[385509284,1757883040067,-480.0,0.00021917,2]
[385509286,1757883040076,-480.0,0.00021917,2]
[385509288,1757883040085,-480.0,0.00021917,2]
[385509290,1757883040094,-480.0,0.00021917,2]
[385509292,1757883040103,-229.0,0.00021943,2]
[385509294,1757883040112,-10590.30103238,0.00021968,2]
[385509296,1757883040121,-229.0,0.00021992,2]
[385509298,1757883040130,-188.5479816,0.00022,2]
[385509300,1757883040139,-616.3215151,0.00022,2]
[385509302,1757883040148,-153.0,0.00022,2]
[385509304,1757883040157,-313.4559726,0.00022,2]
[385509306,1757883040166,-169.9453059,0.00022,2]
[385509308,1757883040175,-153.0,0.00022,2]
[385509310,1757883040184,-188.5479816,0.00022,2]
[385509312,1757883040193,-151.0,0.00022,2]
[385509314,1757883040202,-153.0,0.00022,2]
[385509316,1757883040211,-188.5479816,0.00022,2]
[385509318,1757883040220,-36066.78,0.00022,7]
[385509320,1757883040229,-492.24,0.00022,2]
[385509322,1757883040238,-188.5479816,0.00022,2]
[385509324,1757883040247,-153.0,0.00022,2]
[385509326,1757883040256,-315.3094368,0.00022004,2]
[385509328,1757883040266,-229.0,0.00022051,2]
[385509330,1757883040274,-188.5479816,0.00022078,2]
[385509332,1757883040283,-188.5479816,0.00022082,2]
[385509334,1757883040292,-188.5479816,0.00022082,2]
[385509336,1757883040301,-188.5479816,0.00022082,2]
[385509337,1757883040310,-188.5479816,0.00022082,2]
[385509340,1757883040319,-188.5479816,0.00022082,2]
[385509341,1757883040329,-183.8886035,0.00022082,2]
[385509343,1757883040338,-315.3094368,0.00022091,2]
[385509345,1757883040347,-500.0,0.00022102,2]
[385509347,1757883040356,-500.0,0.00022147,2]
[385509350,1757883040365,-500.0,0.00022173,2]
[385509351,1757883040374,-480.0,0.00022191,3]
[385509353,1757883040385,-496.16,0.00022191,3]
[385509355,1757883040398,-480.0,0.00022191,3]
[385509358,1757883040407,-480.0,0.00022191,3]
[385509360,1757883040416,-518.26,0.00022191,3]
[385509361,1757883040425,-486.37,0.00022191,3]
[385509363,1757883040434,-480.0,0.00022191,3]
[385509365,1757883040445,-480.0,0.00022191,3]
[385509368,1757883040454,-480.0,0.00022191,3]
[385509370,1757883040464,-480.0,0.00022191,3]
[385509372,1757883040473,-480.0,0.00022191,3]
[385509373,1757883040482,-480.0,0.00022191,3]
[385509375,1757883040491,-662.69,0.00022191,3]
[385509378,1757883040501,-480.0,0.00022191,3]
[385509380,1757883040510,-480.0,0.00022191,3]
[385509381,1757883040519,-480.0,0.00022191,3]
[385509384,1757883040528,-480.0,0.00022191,3]
[385509386,1757883040537,-480.0,0.00022191,3]
[385509388,1757883040546,-480.0,0.00022191,3]
[385509390,1757883040555,-480.0,0.00022191,3]
[385509392,1757883040564,-492.17479989,0.00022191,3]
[385509394,1757883040573,-480.0,0.00022191,3]
[385509396,1757883040582,-752.86,0.00022191,3]
[385509398,1757883040591,-480.0,0.00022191,3]
[385509399,1757883040600,-381.24417535,0.00022191,3]
[385509401,1757883040610,-480.0,0.00022191,3]
[385509404,1757883040620,-480.0,0.00022191,3]
[385509405,1757883040629,-480.0,0.00022191,3]
[385509408,1757883040638,-480.0,0.00022191,3]
[385509410,1757883040648,-480.0,0.00022191,3]
[385509412,1757883040657,-480.0,0.00022191,3]
[385509414,1757883040667,-480.0,0.00022191,3]
[385509416,1757883040676,-300.0,0.00022191,2]
[385509418,1757883040686,-480.0,0.00022191,3]
[385509420,1757883040695,-629.43,0.00022191,3]
[385509422,1757883040704,-10889.17,0.00022191,3]
[385509424,1757883040712,-575.93,0.00022191,3]
[385509426,1757883040722,-596.11,0.00022191,3]
[385509428,1757883040731,-719.75,0.00022191,3]
[385509430,1757883040739,-3294.39,0.00022191,3]
[385509432,1757883040748,-918.8,0.00022191,3]
[385509434,1757883040757,-480.0,0.00022191,3]
[385509436,1757883040766,-1704.0,0.00022191,3]
[385509438,1757883040775,-480.0,0.00022191,3]
[385509440,1757883040784,-480.0,0.00022191,3]
[385509442,1757883040793,-526.97,0.00022191,3]
[385509444,1757883040803,-1182.57,0.00022191,3]
[385509446,1757883040811,-480.0,0.00022191,3]
[385509448,1757883040820,-480.0,0.00022191,3]
[385509450,1757883040830,-480.0,0.00022191,3]
[385509452,1757883040839,-3289.51,0.00022191,3]
[385509454,1757883040848,-480.0,0.00022191,3]
[385509456,1757883040857,-817.38,0.00022191,3]
[385509458,1757883040867,-480.0,0.00022191,3]
[385509460,1757883040876,-480.0,0.00022191,3]
[385509462,1757883040885,-480.0,0.00022191,3]
[385509464,1757883040895,-1295.53,0.00022191,3]
[385509465,1757883040904,-551.92,0.00022191,3]
[385509466,1757883040913,-480.0,0.00022191,3]
[385509467,1757883040922,-1359.48,0.00022191,3]
[385509468,1757883040931,-1311.6,0.00022191,3]
[385509469,1757883040940,-556.37,0.00022191,3]
[385509470,1757883040949,-1855.66,0.00022191,3]
[385509471,1757883040958,-577.09,0.00022191,3]
[385509472,1757883040967,-480.0,0.00022191,3]
[385509473,1757883040976,-480.0,0.00022191,3]
[385509474,1757883040985,-525.71,0.00022191,3]
[385509475,1757883040994,-480.0,0.00022191,3]
[385509476,1757883041003,-480.0,0.00022191,3]
[385509477,1757883041012,-6408.23,0.00022191,3]
[385509478,1757883041021,-480.0,0.00022191,3]
[385509479,1757883041030,-480.0,0.00022191,3]
[385509480,1757883041039,-480.0,0.00022191,3]
[385509481,1757883041048,-480.0,0.00022191,3]
[385509482,1757883041057,-1154.95,0.00022191,3]
[385509483,1757883041066,-1228.23,0.00022191,3]
[385509484,1757883041075,-529.75,0.00022191,3]
[385509485,1757883041084,-581.6,0.00022191,3]
[385509486,1757883041093,-480.0,0.00022191,3]
[385509487,1757883041102,-1483.53,0.00022191,3]
[385509488,1757883041111,-743.91,0.00022191,3]
[385509489,1757883041119,-480.0,0.00022191,3]
[385509490,1757883041129,-847.73,0.00022191,3]
[385509491,1757883041138,-600.84,0.00022191,3]
[385509493,1757883041147,-2132.04,0.00022191,3]
[385509495,1757883041156,-566.08,0.00022191,3]
[385509497,1757883041165,-1452.44,0.00022191,3]
[385509499,1757883041174,-3034.58,0.00022191,3]
[385509501,1757883041183,-480.0,0.00022191,3]
[385509503,1757883041192,-480.0,0.00022191,3]
[385509505,1757883041202,-480.0,0.00022191,3]
[385509507,1757883041212,-480.0,0.00022191,3]
[385509509,1757883041221,-480.0,0.00022191,3]
[385509511,1757883041231,-630.39,0.00022191,3]
[385509513,1757883041241,-495.28,0.00022191,3]
[385509515,1757883041249,-480.0,0.00022191,3]
[385509517,1757883041258,-480.0,0.00022191,3]
[385509519,1757883041267,-618.93,0.00022191,3]
[385509521,1757883041276,-480.0,0.00022191,3]
[385509523,1757883041285,-704.02,0.00022191,3]
[385509525,1757883041294,-480.0,0.00022191,3]
[385509526,1757883041303,-1589.38,0.00022191,3]
[385509528,1757883041312,-1264.29,0.00022191,3]
[385509530,1757883041321,-480.0,0.00022191,3]
[385509532,1757883041331,-480.0,0.00022191,3]
[385509535,1757883041340,-480.0,0.00022191,3]
[385509536,1757883041349,-653.99,0.00022191,3]
[385509538,1757883041357,-991.26,0.00022191,3]
[385509540,1757883041367,-480.0,0.00022191,3]
[385509542,1757883041375,-480.0,0.00022191,3]
[385509544,1757883041385,-480.0,0.00022191,3]
[385509546,1757883041399,-480.0,0.00022191,3]
[385509548,1757883041408,-480.0,0.00022191,3]
[385509550,1757883041417,-480.0,0.00022191,3]
[385509552,1757883041426,-977.23,0.000222,7]
[385509554,1757883041437,-229.0,0.00022267,2]
[385509556,1757883041446,-300.0,0.00022354,20]
[385509558,1757883041455,-300.0,0.00022354,20]
[385509560,1757883041466,-300.0,0.00022354,20]
[385509562,1757883041475,-300.0,0.00022354,20]
[385509564,1757883041484,-300.0,0.00022354,20]
[385509566,1757883041493,-300.0,0.00022354,20]
[385509568,1757883041504,-300.0,0.00022354,20]
[385509570,1757883041514,-300.0,0.00022354,20]
[385509573,1757883041524,-300.0,0.00022354,20]
[385509574,1757883041534,-300.0,0.00022354,20]
[385509577,1757883041543,-300.0,0.00022354,20]
[385509579,1757883041554,-300.0,0.00022354,20]
[385509581,1757883041564,-300.0,0.00022354,20]
[385509582,1757883041573,-300.0,0.00022354,20]
[385509584,1757883041582,-300.0,0.00022354,20]
[385509586,1757883041591,-600.0,0.00022354,20]
[385509588,1757883041600,-158.56763096,0.00022366,2]
[385509591,1757883041610,-1464.06023502,0.00022398,2]
[385509592,1757883041619,-229.0,0.00022401,2]
[385509595,1757883041630,-800.0,0.00022405,2]
[385509596,1757883041639,-208.0,0.00022413,2]
[385509599,1757883041648,-214.64016926,0.00022421,2]
[385509600,1757883041657,-500.0,0.00022421,2]
[385509602,1757883041666,-1000.0,0.00022421,2]
[385509605,1757883041676,-1000.0,0.00022421,2]
[385509607,1757883041685,-501.62793363,0.00022421,2]
[385509608,1757883041695,-501.06957447,0.00022421,2]
[385509610,1757883041705,-1000.0,0.00022421,2]
[385509612,1757883041714,-447.89794296,0.00022421,2]
[385509615,1757883041724,-500.0,0.00022421,2]
[385509617,1757883041733,-847.53221149,0.00022421,2]
[385509619,1757883041742,-500.0,0.00022421,2]
[385509620,1757883041751,-1000.0,0.00022421,2]
[385509622,1757883041761,-500.0,0.00022421,2]
[385509625,1757883041770,-1000.0,0.00022421,2]
[385509626,1757883041780,-1000.0,0.00022421,2]
[385509628,1757883041789,-1000.0,0.00022421,2]
[385509630,1757883041799,-500.0,0.00022421,2]
[385509632,1757883041808,-500.0,0.00022421,2]
[385509634,1757883041817,-1000.0,0.00022421,2]
[385509637,1757883041827,-480.0,0.00022465,3]
[385509639,1757883041836,-496.16,0.00022465,3]
[385509641,1757883041845,-480.0,0.00022465,3]
[385509643,1757883041855,-480.0,0.00022465,3]
[385509645,1757883041864,-518.26,0.00022465,3]
[385509646,1757883041873,-486.37,0.00022465,3]
[385509648,1757883041882,-159.56046804,0.00022465,3]
[385509651,1757883041891,-480.0,0.00022465,3]
[385509653,1757883041900,-480.0,0.00022465,3]
[385509655,1757883041909,-480.0,0.00022465,3]
[385509657,1757883041918,-480.0,0.00022465,3]
[385509658,1757883041927,-480.0,0.00022465,3]
[385509661,1757883041936,-662.69,0.00022465,3]
[385509663,1757883041946,-480.0,0.00022465,3]
[385509664,1757883041955,-480.0,0.00022465,3]
[385509666,1757883041964,-480.0,0.00022465,3]
[385509669,1757883041973,-480.0,0.00022465,3]
[385509671,1757883041982,-480.0,0.00022465,3]
[385509673,1757883041991,-480.0,0.00022465,3]
[385509675,1757883042000,-480.0,0.00022465,3]
[385509676,1757883042009,-480.0,0.00022465,3]
[385509678,1757883042018,-752.86,0.00022465,3]
[385509680,1757883042027,-480.0,0.00022465,3]
[385509682,1757883042037,-480.0,0.00022465,3]
[385509684,1757883042047,-480.0,0.00022465,3]
[385509686,1757883042056,-480.0,0.00022465,3]
[385509688,1757883042066,-480.0,0.00022465,3]
[385509691,1757883042075,-480.0,0.00022465,3]
[385509692,1757883042084,-480.0,0.00022465,3]
[385509694,1757883042093,-480.0,0.00022465,3]
[385509696,1757883042103,-300.0,0.00022465,2]
[385509698,1757883042112,-480.0,0.00022465,3]
[385509701,1757883042122,-629.43,0.00022465,3]
[385509702,1757883042131,-10889.17,0.00022465,3]
[385509705,1757883042141,-575.93,0.00022465,3]
[385509706,1757883042152,-596.11,0.00022465,3]
[385509708,1757883042162,-719.75,0.00022465,3]
[385509710,1757883042172,-3294.39,0.00022465,3]
[385509713,1757883042182,-918.8,0.00022465,3]
[385509715,1757883042192,-480.0,0.00022465,3]
[385509716,1757883042202,-1704.0,0.00022465,3]
[385509719,1757883042212,-480.0,0.00022465,3]
[385509720,1757883042221,-526.97,0.00022465,3]
[385509722,1757883042230,-1182.57,0.00022465,3]
[385509724,1757883042240,-480.0,0.00022465,3]
[385509726,1757883042249,-480.0,0.00022465,3]
[385509728,1757883042258,-480.0,0.00022465,3]
[385509730,1757883042267,-3289.51,0.00022465,3]
[385509732,1757883042276,-480.0,0.00022465,3]
[385509734,1757883042285,-817.38,0.00022465,3]
[385509736,1757883042294,-480.0,0.00022465,3]
[385509752,1757883042427,-271.63024714,0.00022465,3]
[385509754,1757883042437,-1295.53,0.00022465,3]
[385509756,1757883042447,-551.92,0.00022465,3]
[385509758,1757883042456,-480.0,0.00022465,3]
[385509760,1757883042465,-1359.48,0.00022465,3]
[385509762,1757883042474,-1311.6,0.00022465,3]
[385509763,1757883042483,-556.37,0.00022465,3]
[385509765,1757883042492,-1855.66,0.00022465,3]
[385509767,1757883042502,-577.09,0.00022465,3]
[385509769,1757883042511,-480.0,0.00022465,3]
[385509771,1757883042521,-480.0,0.00022465,3]
[385509773,1757883042530,-525.71,0.00022465,3]
[385509775,1757883042541,-480.0,0.00022465,3]
[385509778,1757883042550,-480.0,0.00022465,3]
[385509779,1757883042559,-6408.23,0.00022465,3]
[385509781,1757883042568,-480.0,0.00022465,3]
[385509783,1757883042578,-480.0,0.00022465,3]
[385509785,1757883042587,-480.0,0.00022465,3]
[385509787,1757883042596,-480.0,0.00022465,3]
[385509789,1757883042605,-1154.95,0.00022465,3]
[385509791,1757883042614,-1228.23,0.00022465,3]
[385509793,1757883042624,-529.75,0.00022465,3]
[385509795,1757883042633,-581.6,0.00022465,3]
[385509797,1757883042641,-480.0,0.00022465,3]
[385509799,1757883042650,-1483.53,0.00022465,3]
[385509801,1757883042661,-743.91,0.00022465,3]
[385509803,1757883042670,-480.0,0.00022465,3]
[385509805,1757883042679,-847.73,0.00022465,3]
[385509807,1757883042688,-600.84,0.00022465,3]
[385509809,1757883042697,-2132.04,0.00022465,3]
[385509811,1757883042706,-566.08,0.00022465,3]
[385509813,1757883042715,-1452.44,0.00022465,3]
[385509815,1757883042724,-3034.58,0.00022465,3]
[385509817,1757883042733,-480.0,0.00022465,3]
[385509819,1757883042742,-480.0,0.00022465,3]
[385509821,1757883042751,-357.75164448,0.00022465,3]
[385509823,1757883042760,-480.0,0.00022465,3]
[385509825,1757883042769,-480.0,0.00022465,3]
[385509827,1757883042778,-630.39,0.00022465,3]
[385509829,1757883042787,-495.28,0.00022465,3]
[385509831,1757883042796,-480.0,0.00022465,3]
[385509833,1757883042805,-480.0,0.00022465,3]
[385509835,1757883042814,-618.93,0.00022465,3]
[385509837,1757883042823,-480.0,0.00022465,3]
[385509839,1757883042832,-704.02,0.00022465,3]
[385509841,1757883042841,-480.0,0.00022465,3]
[385509843,1757883042851,-1589.38,0.00022465,3]
[385509845,1757883042860,-1264.29,0.00022465,3]
[385509847,1757883042870,-480.0,0.00022465,3]
[385509850,1757883042880,-480.0,0.00022465,3]
[385509852,1757883042890,-226.56197698,0.00022465,3]
[385509853,1757883042901,-653.99,0.00022465,3]
[385509856,1757883042911,-991.26,0.00022465,3]
[385509857,1757883042920,-294.92875363,0.00022465,3]
[385509860,1757883042930,-480.0,0.00022465,3]
[385509862,1757883042939,-480.0,0.00022465,3]
[385509864,1757883042948,-480.0,0.00022465,3]
[385509866,1757883042957,-480.0,0.00022465,3]
[385509868,1757883042967,-480.0,0.00022465,3]
[385509870,1757883042976,-153.0,0.00022466,2]
[385509872,1757883042985,-303.1260357,0.00022466,2]
[385509874,1757883042994,-500.0,0.00022497,2]
[385509876,1757883043003,-500.0,0.00022497,2]
[385509878,1757883043012,-1000.0,0.0002264,2]
[385509880,1757883043021,-976.0,0.00022661,2]
[385509882,1757883043031,-2156.0,0.00022661,2]
[385509884,1757883043040,-634.0,0.00022661,2]
[385509886,1757883043049,-208.0,0.0002268,2]
[385509888,1757883043058,-11001.5268585,0.00022696,2]
[385509890,1757883043067,-1491.2431518,0.00022696,2]
[385509892,1757883043076,-1000.0,0.00022721,2]
[385509894,1757883043085,-2393.70251534,0.00022739,2]
[385509896,1757883043095,-480.0,0.00022739,3]
[385509898,1757883043104,-496.16,0.00022739,3]
[385509900,1757883043114,-480.0,0.00022739,3]
[385509902,1757883043123,-480.0,0.00022739,3]
[385509904,1757883043133,-518.26,0.00022739,3]
[385509906,1757883043142,-486.37,0.00022739,3]
[385509908,1757883043151,-480.0,0.00022739,3]
[385509910,1757883043160,-505.62893194,0.00022739,3]
[385509912,1757883043170,-480.0,0.00022739,3]
[385509914,1757883043180,-480.0,0.00022739,3]
[385509916,1757883043190,-480.0,0.00022739,3]